bitfinex-derivatives/quotes_BTCF0:USTF0_20250903
["timestamp","ask_amount","ask_price","bid_price","bid_amount"]
[1756924277412,1.09806925,112190.0,112180.0,0.82037]
[1756924277615,1.09806925,112190.0,112180.0,0.81592]
[1756924277806,1.10006925,112190.0,112180.0,0.81592]
[1756924278312,1.10206925,112190.0,112180.0,0.81692]
[1756924280110,1.10206925,112190.0,112180.0,0.001]
[1756924281706,1.03817919,112190.0,112180.0,0.001]
[1756924283316,1.08592837,112190.0,112180.0,0.001]
[1756924284517,0.72064679,112190.0,112180.0,0.001]
[1756924284719,1.08592837,112190.0,112180.0,0.001]
[1756924285315,1.03817919,112190.0,112180.0,0.001]
[1756924285617,1.08591971,112190.0,112180.0,0.001]
[1756924286720,1.03817919,112190.0,112180.0,0.001]
[1756924287421,1.03817919,112190.0,112180.0,0.00767]
[1756924287719,1.03817919,112190.0,112180.0,0.001]
[1756924290624,1.10206925,112190.0,112180.0,0.001]
[1756924295325,1.03817919,112190.0,112180.0,0.001]
[1756924295526,1.11804177,112190.0,112180.0,0.001]
[1756924296620,0.0391,112180.0,112170.0,0.82269]
[1756924296814,0.84474673,112180.0,112170.0,0.82259]
[1756924297018,0.86374434,112180.0,112170.0,0.82259]
[1756924297926,0.86474434,112180.0,112170.0,0.82359]
[1756924298422,0.86474434,112180.0,112170.0,0.82351]
[1756924298628,0.86474434,112180.0,112170.0,0.001]
[1756924298822,0.93735771,112180.0,112170.0,0.81684]
[1756924300622,1.30263929,112180.0,112170.0,0.001]
[1756924300819,0.85779256,112180.0,112170.0,0.001]
[1756924301018,1.33488175,112180.0,112170.0,0.001]
[1756924301419,0.96960017,112180.0,112170.0,0.001]
[1756924302022,0.03698,112170.0,112160.0,0.00455]
[1756924302227,1.20797115,112170.0,112160.0,0.82025]
[1756924302427,1.95753192,112170.0,112160.0,0.00445]
[1756924302629,0.4964056,112170.0,112160.0,0.00445]
[1756924302823,1.87790393,112170.0,112160.0,0.00445]
[1756924303221,1.98971154,112170.0,112160.0,0.00445]
[1756924303421,1.99071154,112170.0,112160.0,0.00545]
[1756924304028,1.99171154,112170.0,112160.0,0.00545]
[1756924305332,2.07139575,112170.0,112160.0,0.00545]
[1756924305525,0.03698,112160.0,112150.0,0.0001]
[1756924305717,0.03698,112150.0,112140.0,0.83289]
[1756924305922,0.82682026,112150.0,112140.0,0.83279]
[1756924306126,0.48053629,112150.0,112140.0,1.08279]
[1756924306328,0.84581787,112150.0,112140.0,1.08279]
[1756924306632,0.82987868,112150.0,112140.0,1.08279]
[1756924307925,0.82987868,112150.0,112140.0,0.83279]
[1756924308133,0.78505919,112150.0,112140.0,0.83279]
[1756924308436,0.84193207,112150.0,112140.0,0.83279]
[1756924309433,0.8425052,112150.0,112140.0,0.83279]
[1756924309622,0.83343276,112150.0,112140.0,0.83279]
[1756924310234,0.84238718,112150.0,112140.0,0.83279]
[1756924310732,0.83343276,112150.0,112140.0,0.83279]
[1756924311834,0.84243257,112150.0,112140.0,0.83279]
[1756924312332,0.85839081,112150.0,112140.0,0.83279]
[1756924312524,0.01382,112140.0,112130.0,0.01709]
[1756924312729,0.44553596,112140.0,112130.0,0.83275]
[1756924312932,0.83038828,112140.0,112130.0,0.83275]
[1756924313230,0.83063458,112140.0,112130.0,0.83275]
[1756924313629,1.14873333,112140.0,112130.0,0.83275]
[1756924313823,1.88244275,112140.0,112130.0,0.83275]
[1756924314226,1.88344275,112140.0,112130.0,0.83275]
[1756924316226,1.88344275,112140.0,112130.0,0.81576]
[1756924316426,1.93115141,112140.0,112130.0,0.81576]
[1756924316836,1.93115141,112140.0,112130.0,0.83275]
[1756924317033,1.93115141,112140.0,112130.0,0.81576]
[1756924317332,1.93115141,112140.0,112130.0,0.83275]
[1756924318229,0.46773257,112140.0,112130.0,0.83275]
[1756924318429,1.93115141,112140.0,112130.0,0.83275]
[1756924320443,0.83358728,112140.0,112130.0,0.83275]
[1756924320925,0.46773257,112140.0,112130.0,0.83275]
[1756924321334,0.83358728,112140.0,112130.0,0.83275]
[1756924321738,0.46773257,112140.0,112130.0,0.83275]
[1756924322030,0.83358728,112140.0,112130.0,0.83275]
[1756924323437,0.46773257,112140.0,112130.0,0.83275]
[1756924323729,0.83358728,112140.0,112130.0,0.83275]
[1756924324633,0.46773257,112140.0,112130.0,0.85368137]
[1756924324843,0.46773257,112140.0,112130.0,1.21953608]
[1756924325140,0.46773257,112140.0,112130.0,0.83275]
[1756924325328,0.46773257,112140.0,112130.0,1.19860471]
[1756924328437,0.44457257,112140.0,112130.0,1.19860471]
[1756924328741,0.44455257,112140.0,112130.0,1.19860471]
[1756924330143,0.43075257,112140.0,112130.0,1.19860471]
[1756924330338,0.43075257,112140.0,112130.0,0.64804471]
[1756924330536,0.45445257,112140.0,112130.0,1.46384471]
[1756924330739,0.43075257,112140.0,112130.0,0.64804471]
[1756924330934,0.77075257,112140.0,112130.0,0.64804471]
[1756924331142,0.80825257,112140.0,112130.0,1.46384471]
[1756924332841,0.80825257,112140.0,112130.0,1.46380471]
[1756924333042,0.80825257,112140.0,112130.0,0.64804471]
[1756924333242,0.80825257,112140.0,112130.0,1.46380471]
[1756924335454,0.77075257,112140.0,112130.0,1.71380471]
[1756924335748,0.10224391,112140.0,112130.0,1.71380471]
[1756924336345,0.36224391,112140.0,112130.0,1.71380471]
[1756924337145,0.39974391,112140.0,112130.0,1.71380471]
[1756924338041,0.39974391,112140.0,112130.0,1.34795]
[1756924338347,0.39974391,112140.0,112130.0,1.71380471]
[1756924340349,0.39974391,112140.0,112130.0,1.34795]
[1756924340545,0.39974391,112140.0,112130.0,1.71380471]
[1756924340845,0.39974391,112140.0,112130.0,1.34819]
[1756924341048,0.39974391,112140.0,112130.0,1.71404471]
[1756924344845,0.39974391,112140.0,112130.0,0.89804471]
[1756924345051,0.39974391,112140.0,112130.0,1.71376471]
[1756924346647,0.44745257,112140.0,112130.0,1.71376471]
[1756924349051,0.44745257,112140.0,112130.0,0.89804471]
[1756924349251,0.44745257,112140.0,112130.0,1.71424471]
[1756924350548,0.44745257,112140.0,112130.0,1.34839]
[1756924350748,0.44745257,112140.0,112130.0,1.71424471]
[1756924351957,0.42375257,112140.0,112130.0,1.71424471]
[1756924355055,0.08375257,112140.0,112130.0,1.71424471]
[1756924356757,0.03604391,112140.0,112130.0,1.71424471]
[1756924357754,0.03604391,112140.0,112130.0,0.89804471]
[1756924357954,0.05974391,112140.0,112130.0,1.71452471]
[1756924360156,0.10745257,112140.0,112130.0,1.71452471]
[1756924360356,0.05974391,112140.0,112130.0,1.71452471]
[1756924360952,0.05974391,112140.0,112130.0,0.89804471]
[1756924361252,0.05974391,112140.0,112130.0,1.71416471]
[1756924361862,0.05974391,112140.0,112130.0,0.89804471]
[1756924362160,0.05974391,112140.0,112130.0,1.71412471]
[1756924364160,0.10745257,112140.0,112130.0,1.71412471]
[1756924364654,0.10745257,112140.0,112130.0,0.53219]
[1756924364956,0.47330728,112140.0,112130.0,0.64804471]
[1756924365255,0.02224391,112140.0,112130.0,1.46428471]
[1756924365457,0.03701391,112140.0,112130.0,1.46428471]
[1756924366864,0.06547866,112140.0,112130.0,1.46428471]
[1756924367253,0.08472257,112140.0,112130.0,1.46428471]
[1756924368364,0.03701391,112140.0,112130.0,1.46428471]
[1756924369560,0.03701391,112140.0,112130.0,1.46424283]
[1756924370362,0.03701391,112140.0,112130.0,1.09843]
[1756924370562,0.03701391,112140.0,112130.0,1.46424283]
[1756924374161,0.08472257,112140.0,112130.0,1.46424283]
[1756924375067,0.03701391,112140.0,112130.0,1.46424283]
[1756924376567,0.06547866,112140.0,112130.0,1.46424283]
[1756924376754,0.08472257,112140.0,112130.0,1.46424283]
[1756924377664,0.03701391,112140.0,112130.0,1.46424283]
[1756924378464,0.02224391,112140.0,112130.0,1.46424283]
[1756924378864,0.03701391,112140.0,112130.0,1.46424283]
[1756924382067,0.01777,112140.0,112130.0,1.09843]
[1756924382268,0.03693354,112140.0,112130.0,1.46424283]
[1756924383159,0.03693354,112140.0,112130.0,1.09843]
[1756924383359,0.03693354,112140.0,112130.0,1.46424283]
[1756924383959,0.02216354,112140.0,112130.0,1.46424283]
[1756924384169,0.02216354,112140.0,112130.0,3.64163872]
[1756924384365,0.02216354,112140.0,112130.0,3.37643872]
[1756924384673,0.02216354,112140.0,112130.0,3.68974515]
[1756924384968,0.003,112140.0,112130.0,2.82539872]
[1756924385172,0.003,112140.0,112130.0,3.42480374]
[1756924385367,0.003,112140.0,112130.0,1.72816785]
[1756924385572,0.003,112140.0,112130.0,0.79176785]
[1756924385873,0.003,112140.0,112130.0,1.56008283]
[1756924386071,0.02216289,112140.0,112130.0,1.56008283]
[1756924386372,0.02216289,112140.0,112130.0,1.19427]
[1756924386673,0.02216289,112140.0,112130.0,1.57008283]
[1756924387067,0.06056289,112140.0,112130.0,0.38779]
[1756924387273,0.06056289,112140.0,112130.0,1.57008283]
[1756924389477,0.02216289,112140.0,112130.0,1.57008283]
[1756924393782,0.06025289,112140.0,112130.0,1.57328283]
[1756924395484,0.06025289,112140.0,112130.0,1.83848283]
[1756924397182,0.06025289,112140.0,112130.0,1.47267]
[1756924397374,0.06025289,112140.0,112130.0,1.47247]
[1756924397570,0.06025289,112140.0,112130.0,1.01880283]
[1756924397781,0.78686572,112140.0,112130.0,0.28219]
[1756924398084,1.03686572,112140.0,112130.0,1.10139]
[1756924398483,0.67105289,112140.0,112130.0,1.10139]
[1756924399383,0.67105289,112140.0,112130.0,1.46720283]
[1756924400080,0.67105289,112140.0,112130.0,1.10139]
[1756924400478,0.42105289,112140.0,112130.0,1.46720283]
[1756924400685,0.03582289,112140.0,112130.0,1.82800283]
[1756924400883,0.02216289,112140.0,112130.0,1.82800283]
[1756924402785,0.02216289,112140.0,112130.0,2.14800283]
[1756924402992,0.02216289,112140.0,112130.0,1.82800283]
[1756924404486,0.02216289,112140.0,112130.0,2.54716023]
[1756924404887,0.02216289,112140.0,112130.0,3.64459872]
[1756924405090,0.003,112140.0,112130.0,3.64459872]
[1756924406587,0.003,112140.0,112130.0,2.82539872]
[1756924406790,0.003,112140.0,112130.0,1.85824283]
[1756924406980,0.003,112140.0,112130.0,1.03880283]
[1756924407289,0.003,112140.0,112130.0,1.85824283]
[1756924408584,0.003,112140.0,112130.0,1.85816283]
[1756924409086,0.003,112140.0,112130.0,1.85804283]
[1756924409483,0.003,112140.0,112130.0,1.03880283]
[1756924409681,0.003,112140.0,112130.0,1.85796283]
[1756924410493,0.03582356,112140.0,112130.0,0.67299]
[1756924410690,0.02216356,112140.0,112130.0,1.85796283]
[1756924412188,0.003,112140.0,112130.0,1.85796283]
[1756924413197,0.003,112140.0,112130.0,1.49215]
[1756924413395,0.003,112140.0,112130.0,1.85796283]
[1756924414102,0.003,112140.0,112130.0,2.29712023]
[1756924414286,0.003,112140.0,112130.0,2.66293306]
[1756924418099,0.003,112140.0,112130.0,4.54725306]
[1756924419297,0.003,112140.0,112130.0,3.25893566]
[1756924419497,0.003,112140.0,112130.0,4.07873566]
[1756924419693,0.003,112140.0,112130.0,3.71292283]
[1756924421288,0.003,112140.0,112130.0,3.25893566]
[1756924421494,0.01749,112140.0,112130.0,3.71296283]
[1756924422399,0.01749,112140.0,112130.0,4.08212033]
[1756924422597,0.003,112140.0,112130.0,4.08212033]
[1756924422798,0.003,112140.0,112130.0,4.44793316]
[1756924423300,0.003,112140.0,112130.0,4.16793316]
[1756924423601,0.003,112140.0,112130.0,4.46793316]
[1756924424902,0.003,112140.0,112130.0,4.44793316]
[1756924425701,0.01749,112140.0,112130.0,4.44793316]
[1756924426505,0.01749,112140.0,112130.0,3.7163075]
[1756924426694,0.003,112140.0,112130.0,4.44793316]
[1756924426896,0.003,112140.0,112130.0,5.42955882]
[1756924428189,0.003,112140.0,112130.0,5.47772384]
[1756924429605,0.003,112140.0,112130.0,5.47699456]
[1756924432205,0.01487,112160.0,112140.0,0.0943166]
[1756924432405,0.05864076,112160.0,112150.0,1.56354051]
[1756924433308,0.05964076,112160.0,112150.0,1.56358051]
[1756924433514,0.06164076,112160.0,112150.0,1.56362051]
[1756924434213,0.06164076,112160.0,112150.0,1.82882051]
[1756924435218,0.06164076,112160.0,112150.0,1.00862051]
[1756924435419,0.06164076,112160.0,112150.0,1.82882051]
[1756924435619,0.06164076,112160.0,112150.0,1.82982051]
[1756924436620,0.09014866,112160.0,112150.0,1.82982051]
[1756924436813,0.10934942,112160.0,112150.0,1.82982051]
[1756924437318,0.06164076,112160.0,112150.0,1.82982051]
[1756924437517,0.10934942,112160.0,112150.0,1.82982051]
[1756924438220,0.06164076,112160.0,112150.0,2.19062051]
[1756924438722,0.06164076,112160.0,112150.0,2.27976201]
[1756924438723,0.02220076,112160.0,112150.0,2.27976201]
[1756924438922,0.03669076,112160.0,112150.0,2.27976201]
[1756924439712,0.03669076,112160.0,112150.0,2.19062051]
[1756924440822,0.03669076,112160.0,112150.0,2.19002051]
[1756924441525,0.03669076,112160.0,112150.0,1.37042051]
[1756924441725,0.03669076,112160.0,112150.0,2.18982051]
[1756924443520,0.03669076,112160.0,112150.0,1.37042051]
[1756924443725,0.03669076,112160.0,112150.0,1.82874051]
[1756924444144,0.03669076,112160.0,112150.0,1.82858051]
[1756924447736,0.02220076,112160.0,112150.0,1.82858051]
[1756924448033,0.03669076,112160.0,112150.0,1.82858051]
[1756924449840,0.03669076,112160.0,112150.0,1.00962051]
[1756924450026,0.03669076,112160.0,112150.0,1.82798051]
[1756924453536,0.03658301,112160.0,112150.0,1.82798051]
[1756924454536,0.03658301,112160.0,112150.0,0.64399]
[1756924454736,0.03658301,112160.0,112150.0,1.82774051]
[1756924456935,0.03658301,112160.0,112150.0,1.46211]
[1756924457240,0.03658301,112160.0,112150.0,1.82774051]
[1756924457738,0.03658301,112160.0,112150.0,1.82766051]
[1756924458439,0.02209301,112160.0,112150.0,1.82766051]
[1756924460739,0.03698301,112160.0,112150.0,1.82766051]
[1756924461846,0.02209301,112160.0,112150.0,1.82766051]
[1756924462150,0.02209301,112160.0,112150.0,2.83760281]
[1756924462440,0.04780866,112180.0,112170.0,0.1061165]
[1756924462645,0.40041,112200.0,112190.0,0.01699]
[1756924462840,0.44819142,112200.0,112190.0,1.20074051]
[1756924463250,0.40031,112200.0,112190.0,1.20074051]
[1756924464148,0.65031,112200.0,112190.0,1.20074051]
[1756924464455,0.65031,112200.0,112190.0,1.22153527]
[1756924464754,0.65231,112200.0,112190.0,1.22153527]
[1756924464950,0.65231,112200.0,112190.0,1.23055502]
[1756924465257,0.65031,112200.0,112190.0,1.23055502]
[1756924465456,0.65531,112200.0,112190.0,1.23255502]
[1756924465955,0.29251,112200.0,112190.0,1.59335502]
[1756924466357,0.04251,112200.0,112190.0,1.59335502]
[1756924466554,0.003,112200.0,112190.0,1.59335502]
[1756924466949,0.003,112200.0,112190.0,1.6651972]
[1756924467452,0.004,112200.0,112190.0,0.77523502]
[1756924467658,0.04351,112200.0,112190.0,0.77523502]
[1756924467854,0.04351,112200.0,112190.0,1.59379502]
[1756924469161,0.04351,112200.0,112190.0,0.77523502]
[1756924469350,0.04351,112200.0,112190.0,1.59355502]
[1756924471157,0.004,112200.0,112190.0,1.59355502]
[1756924472252,0.004,112200.0,112190.0,1.66489113]
[1756924472761,0.004,112200.0,112190.0,1.69489113]
[1756924472944,0.004,112200.0,112190.0,1.78400173]
[1756924473459,0.004,112200.0,112190.0,2.09400173]
[1756924474648,0.01889,112200.0,112190.0,1.60398062]
[1756924474954,0.03782796,112200.0,112190.0,1.96945113]
[1756924475258,0.03782796,112200.0,112190.0,1.96083138]
[1756924475459,0.03782796,112200.0,112190.0,1.14275138]
[1756924475845,0.03782796,112200.0,112190.0,1.96079138]
[1756924476050,0.06244796,112200.0,112190.0,1.16298476]
[1756924477354,0.06244796,112200.0,112190.0,1.52861527]
[1756924477554,0.06244796,112200.0,112190.0,1.88941527]
[1756924477960,0.02293796,112200.0,112190.0,1.88941527]
[1756924478759,0.02293796,112200.0,112190.0,1.62421527]
[1756924479160,0.03671796,112200.0,112190.0,1.62421527]
[1756924479463,0.03671796,112200.0,112190.0,1.62425527]
[1756924479957,0.06001796,112200.0,112190.0,0.44541527]
[1756924480261,0.06001796,112200.0,112190.0,1.26325527]
[1756924481058,0.06001796,112200.0,112190.0,1.62405527]
[1756924484464,0.06001796,112200.0,112190.0,1.88925527]
[1756924489467,0.06001796,112200.0,112190.0,1.88901247]
[1756924490062,0.06001796,112200.0,112190.0,1.52362476]
[1756924490267,0.06001796,112200.0,112190.0,1.88901247]
[1756924491863,0.06001796,112200.0,112190.0,0.70578476]
[1756924492064,0.06001796,112200.0,112190.0,1.52594476]
[1756924492261,0.06001796,112200.0,112190.0,1.89133247]
[1756924492262,0.10789938,112200.0,112190.0,1.89133247]
[1756924493258,0.08459938,112200.0,112190.0,1.89133247]
[1756924493459,0.07081938,112200.0,112190.0,1.89133247]
[1756924494265,0.02293796,112200.0,112190.0,3.6566062]
[1756924497075,0.02293796,112200.0,112190.0,3.3914062]
[1756924499172,0.02293796,112200.0,112190.0,3.1414062]
[1756924504175,0.004,112200.0,112190.0,3.1414062]
[1756924505374,0.00501136,112200.0,112190.0,3.1414062]
[1756924506273,0.01388,112220.0,112200.0,0.0945486]
[1756924506579,0.0188341,112220.0,112210.0,1.92797771]
[1756924506878,0.0188341,112220.0,112210.0,1.41397771]
[1756924507079,0.0188341,112220.0,112210.0,2.23785771]
[1756924507280,0.0326141,112220.0,112210.0,2.23777771]
[1756924507782,0.0396141,112220.0,112210.0,1.15397771]
[1756924508072,0.0356141,112220.0,112210.0,1.15397771]
[1756924508279,0.0416141,112220.0,112210.0,1.97865771]
[1756924508876,0.0416141,112220.0,112210.0,1.97765771]
[1756924509178,0.0366141,112220.0,112210.0,1.97865771]
[1756924509479,0.0336141,112220.0,112210.0,1.97865771]
[1756924509682,0.0366141,112220.0,112210.0,1.97965771]
[1756924510083,0.0366141,112220.0,112210.0,1.97961771]
[1756924510392,0.0336141,112220.0,112210.0,1.98061771]
[1756924510876,0.0336141,112220.0,112210.0,1.15697771]
[1756924511280,0.0336141,112220.0,112210.0,2.24569771]
[1756924511683,0.0336141,112220.0,112210.0,2.24557771]
[1756924511889,0.2836141,112220.0,112210.0,1.88019]
[1756924512184,1.03374181,112220.0,112210.0,0.3182]
[1756924512388,1.08162323,112220.0,112210.0,1.14156]
[1756924514886,0.71623552,112220.0,112210.0,0.3182]
[1756924515085,1.08162323,112220.0,112210.0,1.14212]
[1756924516790,1.08162323,112220.0,112210.0,0.3182]
[1756924517289,0.71623552,112220.0,112210.0,0.82676]
[1756924517589,1.08162323,112220.0,112210.0,0.82676]
[1756924520981,1.08162323,112220.0,112210.0,0.82684]
[1756924521482,1.03374181,112220.0,112210.0,0.82684]
[1756924523184,1.03374181,112220.0,112210.0,0.84383]
[1756924523987,1.09750049,112220.0,112210.0,0.84383]
[1756924524990,1.03374181,112220.0,112210.0,0.84383]
[1756924526087,0.6683541,112220.0,112210.0,0.84383]
[1756924528086,0.74803831,112220.0,112210.0,0.84383]
[1756924531899,0.74803831,112220.0,112210.0,0.01999]
[1756924532087,0.74803831,112220.0,112210.0,0.003]
[1756924532293,1.11342602,112220.0,112210.0,0.82496]
[1756924532494,0.86342602,112220.0,112200.0,0.0001]
[1756924532801,0.84452192,112210.0,112200.0,0.05709]
[1756924532997,0.86335602,112210.0,112200.0,0.87939]
[1756924534001,0.86335602,112210.0,112200.0,0.88239]
[1756924534500,0.86435602,112210.0,112200.0,0.88339]
[1756924534695,0.87337423,112210.0,112200.0,0.88339]
[1756924535098,0.87237423,112210.0,112200.0,0.87939]
[1756924535491,0.87837423,112210.0,112200.0,0.88139]
[1756924536799,0.86236793,112210.0,112200.0,0.88139]
[1756924537294,0.85334972,112210.0,112200.0,0.88139]
[1756924538094,0.49254972,112210.0,112200.0,0.88139]
[1756924538294,0.49254972,112210.0,112200.0,0.84139]
[1756924538695,0.85334972,112210.0,112200.0,0.84139]
[1756924545304,0.85334972,112210.0,112200.0,0.83963]
[1756924545692,0.85334972,112210.0,112200.0,0.01899]
[1756924546003,0.85334972,112210.0,112200.0,0.83975]
[1756924547906,0.48796201,112210.0,112200.0,0.83975]
[1756924548106,0.85334972,112210.0,112200.0,0.83975]
[1756924549707,0.85334972,112210.0,112200.0,0.01899]
[1756924549912,0.85334972,112210.0,112200.0,0.83939]
[1756924550310,0.48796201,112210.0,112200.0,0.83939]
[1756924550612,0.85334972,112210.0,112200.0,0.83939]
[1756924551410,0.85337632,112210.0,112200.0,0.83939]
[1756924555307,0.85337632,112210.0,112200.0,0.002]
[1756924555513,0.85337632,112210.0,112200.0,0.82264]
[1756924556309,0.85337632,112210.0,112200.0,0.002]
[1756924556514,0.85337632,112210.0,112200.0,0.82288]
[1756924557212,0.85337632,112210.0,112200.0,0.83987]
[1756924557412,0.86938262,112210.0,112200.0,0.002]
[1756924557613,0.03843,112200.0,112190.0,0.0001]
[1756924557820,1.94059108,112200.0,112190.0,0.82088]
[1756924558003,1.95942518,112200.0,112190.0,0.82088]
[1756924559416,1.96442518,112200.0,112190.0,0.82288]
[1756924559717,1.96142518,112200.0,112190.0,0.82188]
[1756924560017,1.96742518,112200.0,112190.0,0.82288]
[1756924560214,2.21542518,112200.0,112190.0,0.001]
[1756924560517,2.21942518,112200.0,112190.0,0.002]
[1756924561116,0.03843,112190.0,112180.0,0.82082]
[1756924561316,0.84427449,112190.0,112180.0,0.82072]
[1756924561617,0.86309804,112190.0,112180.0,0.82072]
[1756924562605,0.86309804,112190.0,112170.0,0.84138548]
[1756924562812,0.82827749,112180.0,112170.0,0.86470548]
[1756924563011,0.84710104,112180.0,112170.0,0.86460548]
[1756924563613,0.91894962,112180.0,112170.0,0.04396548]
[1756924563817,0.91894962,112180.0,112160.0,0.82066]
[1756924563818,0.03843,112170.0,112160.0,0.84398]
[1756924564012,0.81234792,112170.0,112160.0,0.94388]
[1756924564214,0.83117147,112170.0,112160.0,0.94388]
[1756924566313,0.84019124,112170.0,112160.0,0.94388]
[1756924566514,0.84219124,112170.0,112160.0,0.94488]
[1756924566715,1.89073056,112170.0,112160.0,0.84488]
[1756924566908,1.93836305,112170.0,112160.0,0.001]
[1756924567113,1.89073056,112170.0,112160.0,0.82112]
[1756924567509,1.89173056,112170.0,112160.0,0.82112]
[1756924567713,1.89173056,112170.0,112160.0,0.001]
[1756924567914,1.95536374,112170.0,112160.0,0.001]
[1756924569824,1.89173056,112170.0,112160.0,0.001]
[1756924571322,1.93928878,112170.0,112160.0,0.001]
[1756924573227,0.47763154,112170.0,112160.0,0.001]
[1756924573424,0.84304585,112170.0,112160.0,0.02432]
[1756924574533,0.79548763,112170.0,112160.0,0.02432]
[1756924575333,1.16090194,112170.0,112160.0,0.02432]
[1756924575834,1.89173056,112170.0,112160.0,0.02432]
[1756924576829,1.95536374,112170.0,112160.0,0.02432]
[1756924577832,1.89173056,112170.0,112160.0,0.02432]
[1756924579232,0.87511781,112170.0,112160.0,0.02432]
[1756924579434,0.87511781,112170.0,112160.0,0.27432]
[1756924579435,0.92948892,112170.0,112160.0,0.27432]
[1756924579740,0.84985874,112170.0,112160.0,0.27432]
[1756924581834,0.84985874,112170.0,112160.0,1.09388]
[1756924582035,0.78646786,112170.0,112160.0,1.09388]
[1756924583941,0.42105355,112170.0,112160.0,1.09388]
[1756924584144,0.86609804,112170.0,112160.0,1.09388]
[1756924585441,0.78646786,112170.0,112160.0,1.09388]
[1756924586144,1.15188217,112170.0,112160.0,1.09356]
[1756924586450,1.96234097,112170.0,112160.0,0.82024]
[1756924586636,2.13271079,112170.0,112160.0,0.001]
[1756924586837,0.03757,112160.0,112150.0,0.0001]
[1756924587035,0.03757,112150.0,112140.0,0.0001]
[1756924587245,0.03757,112150.0,112130.0,0.57385]
[1756924587246,0.03757,112140.0,112130.0,0.57385]
[1756924587447,0.03757,112130.0,112120.0,0.02317]
[1756924587645,0.46196357,112130.0,112120.0,0.84347]
[1756924587846,0.48078712,112130.0,112120.0,0.84347]
[1756924589252,0.48101139,112130.0,112120.0,0.84347]
[1756924590054,0.48201139,112130.0,112110.0,0.0001]
[1756924590247,1.90769253,112120.0,112110.0,0.0001]
[1756924590454,0.03757,112110.0,112100.0,0.0002]
[1756924590646,0.84341449,112110.0,112100.0,0.0001]
[1756924590847,0.01401,112100.0,112090.0,0.0001]
[1756924591045,0.03757,112090.0,112080.0,0.02317]
[1756924591259,0.82729059,112090.0,112080.0,0.02307]
[1756924591452,0.4809241,112090.0,112080.0,0.02307]
[1756924591753,0.84633841,112090.0,112080.0,0.02307]
[1756924592152,0.78283213,112090.0,112080.0,0.02307]
[1756924593155,0.82930042,112090.0,112080.0,0.02307]
[1756924593353,0.90072156,112090.0,112080.0,0.02307]
[1756924593550,0.90072156,112090.0,112070.0,0.08613]
[1756924593551,0.03757,112080.0,112070.0,0.08613]
[1756924593741,1.90749553,112080.0,112070.0,0.08603]
[1756924593940,0.78283213,112080.0,112070.0,0.08603]
[1756924594544,1.14824644,112080.0,112070.0,0.08603]
[1756924595147,1.14924644,112080.0,112070.0,0.08603]
[1756924595549,1.88107506,112080.0,112070.0,0.08703]
[1756924597053,1.88107506,112080.0,112070.0,0.06396]
[1756924597548,1.88107506,112080.0,112070.0,0.001]
[1756924598259,0.41941782,112080.0,112070.0,0.001]
[1756924598557,1.88107506,112080.0,112070.0,0.001]
[1756924602461,1.88107506,112080.0,112070.0,0.02407]
[1756924602864,1.88107506,112080.0,112070.0,0.001]
[1756924605062,0.039,112040.0,112030.0,0.02447]
[1756924605265,0.40441431,112040.0,112030.0,0.84679]
[1756924606260,0.01463,112040.0,112030.0,1.46220431]
[1756924606464,0.002,112040.0,112030.0,1.47047431]
[1756924607151,0.02098648,112040.0,112030.0,1.09679]
[1756924607361,0.40103079,112040.0,112030.0,1.09679]
[1756924608363,0.40203079,112040.0,112030.0,1.09679]
[1756924608763,0.42640079,112040.0,112030.0,1.09843]
[1756924609171,0.40741431,112040.0,112030.0,0.84843]
[1756924609360,0.40641431,112040.0,112030.0,0.84851]
[1756924609556,0.40441431,112040.0,112030.0,0.84861]
[1756924609756,0.41041431,112040.0,112030.0,0.84861]
[1756924609963,0.77121431,112040.0,112030.0,0.84861]
[1756924610160,0.77121431,112040.0,112030.0,0.84881]
[1756924611365,0.77121431,112040.0,112030.0,0.0001]
[1756924611562,0.79136707,112040.0,112030.0,0.84861]
[1756924614869,0.79136707,112040.0,112030.0,0.0001]
[1756924615065,0.79136707,112040.0,112030.0,0.82398]
[1756924615264,1.08883536,112040.0,112030.0,0.0001]
[1756924617170,1.04136707,112040.0,112030.0,0.0001]
[1756924618074,1.08875268,112040.0,112030.0,0.0001]
[1756924618270,1.04136707,112040.0,112030.0,0.0001]
[1756924619171,0.79136707,112040.0,112030.0,0.0001]
[1756924619969,1.11136707,112040.0,112030.0,0.0001]
[1756924620169,1.17487335,112040.0,112030.0,0.0001]
[1756924620367,1.17487335,112040.0,112030.0,0.02457]
[1756924621070,1.17487335,112040.0,112030.0,0.0001]
[1756924621665,1.11136707,112040.0,112030.0,0.0001]
[1756924622178,1.17487335,112040.0,112030.0,0.0001]
[1756924622473,1.11136707,112040.0,112030.0,0.0001]
[1756924623069,1.17487335,112040.0,112030.0,0.0001]
[1756924632277,0.01441,112030.0,112020.0,0.0001]
[1756924632578,0.01441,112030.0,112010.0,1.88556]
[1756924632579,0.03864,112020.0,112010.0,0.82318]
[1756924632776,0.03864,112010.0,112000.0,0.02486]
[1756924632977,1.17352122,112010.0,112000.0,0.02476]
[1756924633274,1.19251471,112010.0,112000.0,0.84792]
[1756924634081,1.19451471,112010.0,112000.0,0.84792]
[1756924634477,0.82794113,112010.0,112000.0,0.84792]
[1756924634673,1.19451471,112010.0,112000.0,0.02476]
[1756924634979,1.19451471,112010.0,112000.0,0.84788]
[1756924635180,1.19551471,112010.0,112000.0,0.84788]
[1756924635582,1.26647278,112010.0,111990.0,0.00892796]
[1756924635781,0.40521358,112000.0,111990.0,0.03358796]
[1756924636085,0.38763349,112000.0,111990.0,1.10686796]
[1756924636284,0.38763349,112000.0,111990.0,0.85686796]
[1756924636580,0.37322349,112000.0,111990.0,0.85686796]
[1756924636786,0.37322349,112000.0,111990.0,1.22344154]
[1756924637286,0.37522349,112000.0,111990.0,1.22344154]
[1756924638486,0.37622349,112000.0,111990.0,0.85686796]
[1756924638687,0.37622349,112000.0,111990.0,1.12206796]
[1756924639182,0.74279707,112000.0,111990.0,1.12222796]
[1756924639387,0.75720707,112000.0,111990.0,1.12222796]
[1756924639686,0.75720707,112000.0,111990.0,0.29878796]
[1756924639890,1.16551471,112000.0,111990.0,1.11328]
[1756924640389,0.80471471,112000.0,111990.0,1.11328]
[1756924640589,0.75720707,112000.0,111990.0,1.11328]
[1756924640786,1.16551471,112000.0,111990.0,1.11324]
[1756924643789,1.16551471,112000.0,111980.0,0.02486]
[1756924643790,0.03864,111990.0,111980.0,0.02486]